fUST/lending_fUST_20250611
["ID","MTS","AMOUNT","RATE_DAILY","PERIOD"]
[365394678,1749648639756,-460.0,0.00022465,4]
[365394679,1749648639766,-642.36,0.00022465,4]
[365394682,1749648639776,-460.0,0.00022465,4]
[365394683,1749648639785,-460.0,0.00022465,4]
[365394685,1749648639794,-1216.07,0.00022465,4]
[365394687,1749648639803,-781.07884763,0.00022521,7]
[365394689,1749648639812,-1000.0,0.00022537,2]
[365394692,1749648639822,-500.0,0.00022537,2]
[365394693,1749648639831,-500.0,0.00022537,2]
[365394696,1749648639843,-503.23811144,0.00022538,2]
[365394697,1749648639855,-1000.0,0.00022538,2]
[365394700,1749648639867,-500.0,0.00022548,2]
[365394702,1749648639876,-526.82842475,0.00022583,2]
[365394704,1749648639886,-160.0,0.00022585,4]
[365394705,1749648639898,-1047.3647117,0.00022608,2]
[365394707,1749648639907,-781.07884763,0.00022624,7]
[365394709,1749648639916,-500.0,0.00022625,2]
[365394711,1749648639926,-500.0,0.00022625,2]
[365394713,1749648639935,-216.01084162,0.00022673,2]
[365394715,1749648639945,-500.0,0.00022673,2]
[365394717,1749648639955,-500.0,0.00022673,2]
[365394719,1749648639964,-414.68859557,0.00022673,2]
[365394721,1749648639973,-338529.51012904,0.000227,2]
[365394723,1749648639983,-781.07884763,0.00022728,7]
[365394725,1749648639992,-500.0,0.00022729,2]
[365394727,1749648640002,-500.0,0.00022729,2]
[365394729,1749648640012,-500.0,0.00022729,2]
[365394731,1749648640021,-500.0,0.00022729,2]
[365394733,1749648640031,-500.0,0.00022729,2]
[365394735,1749648640041,-500.0,0.00022729,2]
[365394737,1749648640050,-370.06836183,0.00022729,2]
[365394739,1749648640059,-500.0,0.00022729,2]
[365394741,1749648640068,-500.0,0.00022729,2]
[365394743,1749648640077,-500.0,0.00022729,2]
[365394745,1749648640087,-500.0,0.00022729,2]
[365394747,1749648640100,-500.0,0.00022729,2]
[365394749,1749648640110,-500.0,0.00022729,2]
[365394751,1749648640119,-500.0,0.00022729,2]
[365394753,1749648640129,-500.0,0.00022729,2]
[365394755,1749648640138,-500.0,0.00022729,2]
[365394757,1749648640147,-500.0,0.00022729,2]
[365394759,1749648640156,-500.0,0.00022729,2]
[365394761,1749648640166,-500.0,0.00022729,2]
[365394763,1749648640175,-500.0,0.00022729,2]
[365394765,1749648640185,-405.48710238,0.00022729,2]
[365394767,1749648640194,-500.0,0.00022729,2]
[365394769,1749648640203,-500.0,0.00022729,2]
[365394771,1749648640213,-500.0,0.00022729,2]
[365394773,1749648640222,-500.0,0.00022729,2]
[365394775,1749648640231,-500.0,0.00022729,2]
[365394777,1749648640240,-380.01297309,0.00022729,2]
[365394779,1749648640249,-500.0,0.00022729,2]
[365394781,1749648640258,-500.0,0.00022729,2]
[365394784,1749648640268,-54639.0,0.0002273,3]
[365394785,1749648640277,-213.16534259,0.0002273,3]
[365394788,1749648640286,-11860.25191276,0.0002273,3]
[365394789,1749648640296,-844.64040732,0.0002273,3]
[365394792,1749648640305,-160.0,0.0002273,3]
[365394793,1749648640315,-755.37,0.00022735,4]
[365394796,1749648640325,-460.0,0.00022735,2]
[365394797,1749648640334,-460.0,0.00022739,4]
[365394800,1749648640348,-1340.51,0.00022739,4]
[365394802,1749648640357,-460.0,0.00022739,4]
[365394804,1749648640366,-1451.64,0.00022739,4]
[365394805,1749648640375,-972.39,0.00022739,4]
[365394807,1749648640385,-460.0,0.00022739,4]
[365394809,1749648640394,-927.78,0.00022739,4]
[365394811,1749648640404,-941.47,0.00022739,4]
[365394814,1749648640413,-815.37,0.00022739,4]
[365394816,1749648640422,-565.51,0.00022739,4]
[365394818,1749648640433,-460.0,0.00022739,4]
[365394820,1749648640442,-847.63,0.00022739,4]
[365394821,1749648640452,-460.0,0.00022739,4]
[365394823,1749648640461,-642.36,0.00022739,4]
[365394824,1749648640470,-460.0,0.00022739,4]
[365394825,1749648640481,-460.0,0.00022739,4]
[365394826,1749648640491,-1216.07,0.00022739,4]
[365394827,1749648640500,-151.379,0.0002278,2]
[365394828,1749648640509,-244.659,0.0002278,2]
[365394829,1749648640518,-250.0,0.0002278,2]
[365394830,1749648640528,-30000.0,0.000228,5]
[365394831,1749648640537,-151.0,0.000228,10]
[365394832,1749648640547,-258.292,0.0002282,2]
[365394833,1749648640556,-215.437,0.0002282,2]
[365394834,1749648640566,-781.07884763,0.00022831,8]
[365394835,1749648640576,-963.0,0.00022895,2]
[365394836,1749648640586,-405.0,0.00022895,2]
[365394837,1749648640600,-405.0,0.00022895,2]
[365394838,1749648640610,-718.076,0.00022895,2]
[365394839,1749648640620,-2160.0,0.00022895,2]
[365394840,1749648640630,-500.0,0.00022895,4]
[365394841,1749648640640,-1911.64,0.00022895,2]
[365394843,1749648640650,-608.24,0.000229,7]
[365394845,1749648640660,-182.61696098,0.00022904,2]
[365394847,1749648640669,-781.07884763,0.00022934,8]
[365394848,1749648640680,-503.34321714,0.00022973,2]
[365394850,1749648640690,-500.0,0.00022973,2]
[365394852,1749648640704,-500.0,0.00022973,2]
[365394854,1749648640714,-500.0,0.00022973,2]
[365394856,1749648640723,-500.0,0.00022973,2]
[365394858,1749648640732,-500.0,0.00022973,2]
[365394860,1749648640741,-500.0,0.00022973,2]
[365394861,1749648640750,-600.0,0.00022973,2]
[365394863,1749648640759,-500.0,0.00022973,2]
[365394864,1749648640855,-500.0,0.00022973,2]
[365394865,1749648640869,-500.0,0.00022973,2]
[365394866,1749648640880,-100000.0,0.00023,10]
[365394867,1749648640889,-1000.0,0.00023,23]
[365394868,1749648640898,-112559.53,0.00023,7]
[365394869,1749648640909,-160.0,0.00023,3]
[365394870,1749648640918,-151.0,0.00023,7]
[365394871,1749648640927,-213.16534259,0.00023,7]
[365394872,1749648640937,-213.16534259,0.00023,10]
[365394873,1749648640946,-2448.61,0.00023,7]
[365394874,1749648640956,-189.0,0.00023,7]
[365394875,1749648640966,-160.0,0.00023,3]
[365394876,1749648640975,-229.71724145,0.00023,3]
[365394877,1749648640984,-11860.25191276,0.00023,7]
[365394878,1749648640993,-11860.25191276,0.00023,10]
[365394879,1749648641003,-160.0,0.00023,3]
[365394880,1749648641013,-835.03886221,0.00023,3]
[365394881,1749648641022,-160.0,0.00023,3]
[365394882,1749648641031,-51772.24185188,0.00023,20]
[365394883,1749648641041,-1328.71905864,0.00023,2]
[365394884,1749648641049,-12150.94351892,0.00023,2]
[365394885,1749648641059,-424.19973472,0.00023,3]
[365394886,1749648641068,-160.0,0.00023,3]
[365394887,1749648641077,-844.64040732,0.00023,7]
[365394888,1749648641086,-160.0,0.00023,3]
[365394889,1749648641100,-160.0,0.00023,7]
[365394890,1749648641109,-151.0,0.00023,7]
[365394891,1749648641118,-155.192921,0.00023,7]
[365394892,1749648641127,-1047.3647117,0.00023004,2]
[365394893,1749648641136,-755.37,0.00023009,4]
[365394894,1749648641145,-460.0,0.00023009,2]
[365394895,1749648641155,-5000.0,0.0002301,2]
[365394896,1749648641164,-460.0,0.00023013,4]
[365394897,1749648641174,-1340.51,0.00023013,4]
[365394898,1749648641183,-460.0,0.00023013,4]
[365394899,1749648641193,-1451.64,0.00023013,4]
[365394900,1749648641202,-972.39,0.00023013,4]
[365394901,1749648641211,-460.0,0.00023013,4]
[365394902,1749648641221,-927.78,0.00023013,4]
[365394903,1749648641230,-941.47,0.00023013,4]
[365394904,1749648641242,-815.37,0.00023013,4]
[365394905,1749648641252,-565.51,0.00023013,4]
[365394906,1749648641262,-460.0,0.00023013,4]
[365394907,1749648641271,-847.63,0.00023013,4]
[365394908,1749648641281,-460.0,0.00023013,4]
[365394909,1749648641290,-642.36,0.00023013,4]
[365394910,1749648641300,-460.0,0.00023013,4]
[365394911,1749648641309,-460.0,0.00023013,4]
[365394912,1749648641319,-1216.07,0.00023013,4]
[365394913,1749648641328,-161.0,0.00023014,7]
[365394914,1749648641338,-781.07884763,0.00023038,8]
[365394915,1749648641351,-800.0,0.00023046,2]
[365394916,1749648641360,-1689.123308,0.0002308,5]
[365394917,1749648641369,-649.03949317,0.00023085,2]
[365394918,1749648641378,-1500.0,0.00023086,2]
[365394919,1749648641388,-1000.0,0.000231,5]
[365394920,1749648641397,-1000.0,0.0002312,5]
[365394921,1749648641406,-1000.0,0.0002314,5]
[365394922,1749648641415,-160.0,0.0002314,5]
[365394923,1749648641424,-781.07884763,0.00023141,8]
[365394924,1749648641433,-526.82842475,0.00023155,2]
[365394925,1749648641443,-800.0,0.00023158,2]
[365394926,1749648641452,-894.68,0.0002316,3]
[365394927,1749648641462,-447.34,0.0002316,3]
[365394928,1749648641471,-1000.0,0.0002316,5]
[365394929,1749648641481,-195.18,0.00023169,2]
[365394930,1749648641491,-1000.0,0.0002318,5]
[365394931,1749648641500,-151.0,0.000232,10]
[365394932,1749648641509,-1000.0,0.000232,5]
[365394933,1749648641519,-182.61696098,0.00023205,2]
[365394934,1749648641529,-182.61696098,0.00023205,2]
[365394935,1749648641538,-1000.0,0.0002322,5]
[365394936,1749648641548,-500.0,0.00023221,2]
[365394937,1749648641558,-1000.0,0.0002324,5]
[365394938,1749648641568,-781.07884763,0.00023245,8]
[365394939,1749648641577,-1000.0,0.0002326,5]
[365394940,1749648641587,-1000.0,0.0002328,5]
[365394941,1749648641599,-755.37,0.00023283,4]
[365394942,1749648641610,-460.0,0.00023283,2]
[365394943,1749648641619,-460.0,0.00023287,4]
[365394944,1749648641629,-1340.51,0.00023287,4]
[365394945,1749648641638,-330.16155281,0.00023287,4]
[365394946,1749648641648,-1451.64,0.00023287,4]
[365394947,1749648641657,-972.39,0.00023287,4]
[365394948,1749648641667,-460.0,0.00023287,4]
[365394949,1749648641676,-927.78,0.00023287,4]
[365394950,1749648641686,-941.47,0.00023287,4]
[365394951,1749648641696,-815.37,0.00023287,4]
[365394952,1749648641706,-565.51,0.00023287,4]
[365394953,1749648641716,-548.4152528,0.00023287,4]
[365394954,1749648641726,-847.63,0.00023287,4]
[365394955,1749648641735,-460.0,0.00023287,4]
[365394956,1749648641745,-642.36,0.00023287,4]
[365394957,1749648641756,-460.0,0.00023287,4]
[365394958,1749648641771,-460.0,0.00023287,4]
[365394959,1749648641782,-1216.07,0.00023287,4]
[365394960,1749648641791,-3000.0,0.000233,2]
[365394961,1749648641800,-151.0,0.000233,9]
[365394962,1749648641810,-1000.0,0.000233,5]
[365394963,1749648641820,-151.0,0.000233,7]
[365394964,1749648641829,-3000.0,0.0002331,2]
[365394965,1749648641838,-3000.0,0.0002332,2]
[365394966,1749648641851,-3000.0,0.0002333,2]
[365394967,1749648641861,-3000.0,0.0002334,2]
[365394968,1749648641872,-151.0,0.0002334,7]
[365394969,1749648641882,-151.7387,0.00023348,7]
[365394970,1749648641891,-151.0,0.00023348,7]
[365394971,1749648641902,-151.773593,0.00023348,7]
[365394972,1749648641911,-151.0,0.00023348,7]
[365394973,1749648641920,-151.0,0.00023348,7]
[365394974,1749648641936,-151.0,0.00023348,7]
[365394975,1749648641957,-781.07884763,0.00023348,9]
[365394976,1749648641977,-3000.0,0.0002335,2]
[365394977,1749648641986,-151.0,0.0002335,7]
[365394978,1749648641996,-153.7149,0.0002335,7]
[365394979,1749648642006,-151.0,0.0002335,7]
[365394980,1749648642015,-151.0,0.0002335,7]
[365394981,1749648642025,-151.0,0.0002335,7]
[365394982,1749648642034,-151.0,0.0002335,7]
[365394983,1749648642044,-3000.0,0.0002336,2]
[365394984,1749648642054,-151.0,0.0002336,7]
[365394985,1749648642063,-3000.0,0.0002337,2]
[365394986,1749648642072,-548.82423603,0.00023373,2]
[365394987,1749648642082,-3000.0,0.0002338,2]
[365394988,1749648642094,-3000.0,0.0002339,2]
[365394989,1749648642103,-3000.0,0.000234,2]
[365394990,1749648642112,-38788.07401181,0.000234,2]
[365395010,1749648642828,-3272.33592988,0.00020091,2]
[365395011,1749648642838,-504.75244903,0.00021095,4]
[365395014,1749648642852,-440.0,0.00021095,4]
[365395016,1749648642862,-3721.38352483,0.0002203,2]
[365395033,1749648975416,1000.0,0.00024,120]
[365395104,1749649533083,1000.0,0.00024658,120]
[365395107,1749649535594,1000.0,0.00024658,120]
[365395108,1749649537900,1000.0,0.00024658,120]
[365395157,1749649549942,1572.999957,0.00024658,120]
[365395354,1749649832334,-176.99252253,0.00019576,2]
[365395355,1749649832848,-160.76459632,0.00019576,2]
[365395356,1749649832858,-514.97,0.00020032,2]
[365395357,1749649832867,-162.6384244,0.0002007,2]
[365395358,1749649832878,-300.0,0.00020121,2]
[365395359,1749649832887,-300.0,0.00020121,2]
[365395360,1749649832897,-645.37002239,0.00020122,2]
[365395361,1749649832909,-859.95,0.00020122,2]
[365395362,1749649832921,-999.9,0.00020122,2]
[365395451,1749649838509,-1196.21763495,0.0002011,2]
[365395465,1749649838627,-1138.23118219,0.0002011,2]
[365395467,1749649838636,-3784.61036045,0.00020122,2]
[365395474,1749649838688,-7592.95340166,0.00020122,2]
[365395476,1749649838698,-1043.88240949,0.000209,4]
[365395478,1749649838707,-1029.93,0.00020985,2]
[365395480,1749649838716,-1043.88240943,0.00021038,4]
[365395482,1749649838726,-159.399,0.00021094,2]
[365395484,1749649838735,-460.0,0.00021095,4]
[365395486,1749649838745,-440.0,0.00021095,4]
[365395488,1749649838754,-440.0,0.00021095,4]
[365395490,1749649838768,-440.0,0.00021095,4]
[365395492,1749649838778,-460.0,0.00021095,4]
[365395494,1749649838787,-460.0,0.00021095,4]
[365395496,1749649838797,-431.26164576,0.00021095,4]
[365395498,1749649838806,-440.0,0.00021095,4]
[365395500,1749649838816,-440.0,0.00021095,4]
[365395503,1749649838826,-440.0,0.00021095,4]
[365395504,1749649838835,-440.0,0.00021095,4]
[365395506,1749649838844,-288.92214792,0.00021095,4]
[365395561,1749649840992,-151.07785208,0.00021095,4]
[365395562,1749649841005,-408.40214792,0.00021095,4]
[365395563,1749649841018,-31.59785208,0.00021095,4]
[365395564,1749649841027,-538.64,0.00021095,4]
[365395565,1749649841037,-414.60214792,0.00021095,4]
[365395566,1749649841103,-25.39785208,0.00021095,4]
[365395567,1749649841113,-280.93687703,0.00021095,4]
[365395568,1749649841122,-123.66527089,0.00021095,4]
[365395569,1749649841133,-316.33472911,0.00021095,4]
[365395570,1749649841142,-440.0,0.00021095,4]
[365395571,1749649841151,-440.0,0.00021095,4]
[365395572,1749649841161,-440.0,0.00021095,4]
[365395573,1749649841170,-440.0,0.00021095,4]
[365395574,1749649841179,-440.0,0.00021095,4]
[365395575,1749649841187,-310.96588587,0.00021095,4]
[365395602,1749649842972,-119.03411413,0.00021095,4]
[365395603,1749649842983,-360.0,0.00021095,4]
[365395604,1749649842993,-440.0,0.00021095,4]
[365395605,1749649843002,-547.93213054,0.00021095,4]
[365395606,1749649843013,-440.0,0.00021095,4]
[365395607,1749649843023,-440.0,0.00021095,4]
[365395608,1749649843034,-440.0,0.00021095,4]
[365395609,1749649843044,-440.0,0.00021095,4]
[365395610,1749649843053,-440.0,0.00021095,4]
[365395611,1749649843062,-440.0,0.00021095,4]
[365395612,1749649843072,-440.0,0.00021095,4]
[365395613,1749649843081,-440.0,0.00021095,4]
[365395614,1749649843091,-440.0,0.00021095,4]
[365395616,1749649843100,-420.0,0.00021095,4]
[365395618,1749649843109,-259.71971831,0.00021095,4]
[365395620,1749649843119,-448.30399999,0.00021095,4]
[365395622,1749649843129,-440.0,0.00021095,4]
[365395624,1749649843138,-440.0,0.00021095,4]
[365395626,1749649843148,-440.0,0.00021095,4]
[365395627,1749649843157,-440.0,0.00021095,4]
[365395628,1749649843167,-420.0,0.00021095,4]
[365395629,1749649843176,-730.29,0.00021095,4]
[365395630,1749649843185,-440.0,0.00021095,4]
[365395631,1749649843194,-440.0,0.00021095,4]
[365395632,1749649843203,-440.0,0.00021095,4]
[365395633,1749649843212,-440.0,0.00021095,4]
[365395634,1749649843222,-482.40494254,0.00021095,4]
[365395635,1749649843233,-440.0,0.00021095,4]
[365395636,1749649843243,-334.73981873,0.00021095,4]
[365395637,1749649843252,-420.0,0.00021095,4]
[365395638,1749649843263,-460.0,0.00021095,4]
[365395639,1749649843272,-460.0,0.00021095,4]
[365395640,1749649843281,-422.15089377,0.00021095,4]
[365395641,1749649843291,-440.0,0.00021095,4]
[365395642,1749649843300,-440.0,0.00021095,4]
[365395643,1749649843310,-440.0,0.00021095,4]
[365395644,1749649843319,-460.0,0.00021095,4]
[365395645,1749649843329,-440.0,0.00021095,4]
[365395646,1749649843339,-170.25169962,0.00021095,4]
[365395647,1749649843348,-440.0,0.00021095,4]
[365395648,1749649843359,-440.0,0.00021095,4]
[365395649,1749649843369,-440.0,0.00021095,2]
[365395650,1749649843378,-440.0,0.00021095,4]
[365395651,1749649843388,-440.0,0.00021095,4]
[365395652,1749649843398,-440.0,0.00021095,4]
[365395653,1749649843408,-404.0,0.00021095,4]
[365395654,1749649843419,-440.0,0.00021095,4]
[365395655,1749649843429,-440.0,0.00021095,4]
[365395656,1749649843439,-440.0,0.00021095,4]
[365395657,1749649843453,-440.0,0.00021095,4]
[365395658,1749649843463,-440.0,0.00021095,4]
[365395659,1749649843472,-440.0,0.00021095,4]
[365395660,1749649843481,-440.0,0.00021095,4]
[365395661,1749649843491,-440.0,0.00021095,4]
[365395662,1749649843500,-470.0,0.00021095,4]
[365395663,1749649843510,-212.34259664,0.00021095,4]
[365395664,1749649843521,-440.0,0.00021095,4]
[365395665,1749649843532,-440.0,0.00021095,4]
[365395666,1749649843542,-440.0,0.00021095,4]
[365395667,1749649843551,-440.0,0.00021095,4]
[365395668,1749649843561,-440.0,0.00021095,4]
[365395669,1749649843570,-410.0,0.00021095,4]
[365395670,1749649843579,-460.0,0.00021095,4]
[365395671,1749649843588,-440.0,0.00021095,4]
[365395672,1749649843598,-460.0,0.00021095,2]
[365395673,1749649843607,-440.0,0.00021095,4]
[365395674,1749649843617,-440.0,0.00021095,4]
[365395675,1749649843627,-440.0,0.00021095,4]
[365395676,1749649843636,-460.0,0.00021095,4]
[365395677,1749649843646,-440.0,0.00021095,4]
[365395678,1749649843656,-420.0,0.00021095,4]
[365395679,1749649843666,-420.0,0.00021095,4]
[365395680,1749649843676,-1072.41,0.00021095,4]
[365395681,1749649843685,-440.0,0.00021095,4]
[365395682,1749649843695,-460.0,0.00021095,4]
[365395683,1749649843707,-440.0,0.00021095,4]
[365395684,1749649843717,-420.0,0.00021095,4]
[365395685,1749649843727,-420.0,0.00021095,4]
[365395686,1749649843738,-460.0,0.00021095,4]
[365395687,1749649843748,-420.0,0.00021095,4]
[365395688,1749649843758,-440.0,0.00021095,4]
[365395689,1749649843774,-440.0,0.00021095,4]
[365395690,1749649843784,-729.29,0.00021095,4]
[365395691,1749649843793,-532.02,0.00021095,4]
[365395692,1749649843804,-410.0,0.00021095,4]
[365395693,1749649843813,-440.0,0.00021095,4]
[365395694,1749649843823,-583.75810959,0.00021095,4]
[365395695,1749649843833,-440.0,0.00021095,4]
[365395696,1749649843842,-1443.6,0.00021095,4]
[365395697,1749649843852,-440.0,0.00021095,4]
[365395698,1749649843862,-440.0,0.00021095,4]
[365395699,1749649843872,-460.0,0.00021095,4]
[365395700,1749649843882,-440.0,0.00021095,4]
[365395701,1749649843892,-440.0,0.00021095,4]
[365395702,1749649843903,-420.0,0.00021095,4]
[365395703,1749649843913,-889.5,0.00021095,4]
[365395704,1749649843923,-460.0,0.00021095,4]
[365395705,1749649843933,-745.99,0.00021095,4]
[365395706,1749649843943,-413.61387951,0.00021095,4]
[365395707,1749649843953,-440.0,0.00021095,4]
[365395708,1749649843962,-440.0,0.00021095,4]
[365395709,1749649843973,-440.0,0.00021095,4]
[365395710,1749649843983,-440.0,0.00021095,4]
[365395711,1749649843993,-440.0,0.00021095,4]
[365395712,1749649844004,-440.0,0.00021095,4]
[365395713,1749649844016,-460.0,0.00021095,4]
[365395714,1749649844027,-697.8,0.00021095,4]
[365395715,1749649844037,-561.88,0.00021095,4]
[365395716,1749649844047,-440.0,0.00021095,4]
[365395717,1749649844057,-440.0,0.00021095,4]
[365395718,1749649844067,-635.72,0.00021095,4]
[365395719,1749649844077,-440.0,0.00021095,4]
[365395720,1749649844087,-440.0,0.00021095,4]
[365395721,1749649844098,-440.0,0.00021095,4]
[365395722,1749649844107,-440.0,0.00021095,4]
[365395723,1749649844117,-460.0,0.00021095,4]
[365395724,1749649844126,-440.0,0.00021095,4]
[365395725,1749649844147,-460.0,0.00021095,4]
[365395726,1749649844167,-440.0,0.00021095,4]
[365395727,1749649844176,-440.0,0.00021095,4]
[365395728,1749649844186,-409.55068179,0.00021095,4]
[365395729,1749649844196,-912.05,0.00021095,4]
[365395730,1749649844207,-440.0,0.00021095,4]
[365395731,1749649844217,-460.0,0.00021095,4]
[365395732,1749649844228,-440.0,0.00021095,4]
[365395733,1749649844238,-427.99014919,0.00021095,4]
[365395734,1749649844248,-460.0,0.00021095,4]
[365395735,1749649844258,-460.0,0.00021095,4]
[365395736,1749649844271,-440.0,0.00021095,4]
[365395737,1749649844281,-460.0,0.00021095,4]
[365395738,1749649844291,-460.0,0.00021095,4]
[365395739,1749649844301,-1043.88240943,0.00021176,4]
[365395740,1749649844311,-329.12055531,0.00021205,2]
[365395741,1749649844320,-1043.88240943,0.00021314,5]
[365395742,1749649844329,-500.0,0.00021314,2]
[365395743,1749649844339,-649.03949317,0.00021314,2]
[365395744,1749649844348,-500.0,0.00021346,2]
[365395745,1749649844358,-200.11,0.00021359,10]
[365395746,1749649844368,-166.76,0.00021359,10]
[365395747,1749649844379,-833.81,0.00021359,10]
[365395748,1749649844389,-460.0,0.00021365,4]
[365395749,1749649844399,-460.0,0.00021369,4]
[365395750,1749649844409,-394.25172987,0.00021369,4]
[365395751,1749649844419,-440.0,0.00021369,4]
[365395752,1749649844429,-730.29,0.00021369,4]
[365395753,1749649844438,-443.1423775,0.00021369,4]
[365395754,1749649844450,-460.0,0.00021369,4]
[365395755,1749649844460,-460.0,0.00021369,2]
[365395756,1749649844469,-460.0,0.00021369,4]
[365395757,1749649844479,-1072.41,0.00021369,4]
[365395758,1749649844489,-460.0,0.00021369,4]
[365395759,1749649844499,-460.0,0.00021369,4]
[365395760,1749649844508,-729.29,0.00021369,4]
[365395761,1749649844522,-1443.6,0.00021369,4]
[365395762,1749649844532,-889.5,0.00021369,4]
[365395763,1749649844542,-460.0,0.00021369,4]
[365395764,1749649844552,-745.99,0.00021369,4]
[365395765,1749649844562,-460.0,0.00021369,4]
[365395766,1749649844572,-697.8,0.00021369,4]
[365395767,1749649844585,-561.88,0.00021369,4]
[365395768,1749649844595,-635.72,0.00021369,4]
[365395769,1749649844605,-460.0,0.00021369,4]
[365395770,1749649844616,-460.0,0.00021369,4]
[365395771,1749649844627,-912.05,0.00021369,4]
[365395772,1749649844646,-460.0,0.00021369,4]
[365395773,1749649844659,-460.0,0.00021369,4]
[365395774,1749649844669,-460.0,0.00021369,4]
[365395775,1749649844680,-380.0,0.00021369,4]
[365395776,1749649844690,-440.0,0.00021369,4]
[365395777,1749649844701,-501.82835657,0.00021429,2]
[365395778,1749649844710,-1043.88240943,0.00021452,5]
[365395779,1749649844720,-500.0,0.00021487,2]
[365395780,1749649844731,-500.0,0.00021515,2]
[365395781,1749649844741,-563.17186668,0.00021515,2]
[365395782,1749649844751,-1043.88240943,0.0002159,5]
[365395783,1749649844764,-420.0,0.00021639,4]
[365395784,1749649844774,-201.64,0.00021642,2]
[365395785,1749649844785,-500.0,0.00021642,2]
[365395786,1749649844795,-730.29,0.00021643,4]
[365395787,1749649844806,-460.0,0.00021643,4]
[365395788,1749649844816,-460.0,0.00021643,2]
[365395789,1749649844826,-460.0,0.00021643,4]
[365395790,1749649844835,-1072.41,0.00021643,4]
[365395791,1749649844845,-460.0,0.00021643,4]
[365395792,1749649844855,-460.0,0.00021643,4]
[365395793,1749649844865,-729.29,0.00021643,4]
[365395794,1749649844876,-1443.6,0.00021643,4]
[365395795,1749649844886,-889.5,0.00021643,4]
[365395796,1749649844897,-460.0,0.00021643,4]
[365395797,1749649844907,-745.99,0.00021643,4]
[365395798,1749649844917,-460.0,0.00021643,4]
[365395799,1749649844927,-697.8,0.00021643,4]
[365395800,1749649844937,-561.88,0.00021643,4]
[365395801,1749649844947,-635.72,0.00021643,4]
[365395802,1749649844957,-460.0,0.00021643,4]
[365395803,1749649844967,-193.57,0.00021643,4]
[365395804,1749649844976,-912.05,0.00021643,4]
[365395805,1749649844986,-460.0,0.00021643,4]
[365395806,1749649844996,-460.0,0.00021643,4]
[365395807,1749649845006,-460.0,0.00021643,4]
[365395808,1749649845020,-1043.88240943,0.00021728,5]
[365395809,1749649845030,-1043.88240943,0.00021866,6]
[365395810,1749649845039,-11860.25191276,0.0002188,2]
[365395811,1749649845050,-160.0,0.0002188,2]
[365395812,1749649845059,-160.0,0.00021883,2]
[365395813,1749649845069,-160.0,0.00021883,2]
[365395814,1749649845079,-160.0,0.00021883,2]
[365395815,1749649845088,-835.03886221,0.00021883,2]
[365395816,1749649845098,-229.71724145,0.00021883,2]
[365395817,1749649845108,-160.0,0.00021883,2]
[365395818,1749649845117,-160.0,0.00021883,2]
[365395819,1749649845127,-424.19973472,0.00021883,2]
[365395820,1749649845137,-213.16534259,0.00021883,2]
[365395821,1749649845147,-844.64040732,0.00021883,2]
[365395822,1749649845269,-500.0,0.00021892,2]
[365395823,1749649845292,-1000.0,0.00021894,2]